bitfinex/quotes_ETHUSD_20250909
["timestamp","ask_amount","ask_price","bid_price","bid_amount"]
[1757403606225,2.3114,4359.3,4359.1,0.8137]
[1757403606399,1.76,4359.3,4359.1,0.6313]
[1757403606599,2.439,4359.2,4359.1,0.3575]
[1757403606779,1.76,4359.3,4359.1,0.6313]
[1757403606987,3.883,4359.2,4359.1,0.6313]
[1757403607281,6.17699889,4359.2,4359.1,0.042]
[1757403607504,6.17699889,4359.2,4359.1,0.341]
[1757403608037,6.17699889,4359.2,4359.1,0.042]
[1757403608727,1.76,4359.3,4359.1,0.341]
[1757403609032,3.9974,4359.2,4359.1,0.341]
[1757403609187,6.29139889,4359.2,4359.1,0.341]
[1757403609389,3.9974,4359.2,4359.1,0.341]
[1757403610230,6.17699889,4359.2,4359.1,0.341]
[1757403610742,6.17699889,4359.2,4359.1,0.042]
[1757403613695,6.64299889,4359.2,4359.1,0.042]
[1757403614542,7.44589889,4359.2,4359.1,0.042]
[1757403614953,6.97989889,4359.2,4359.1,0.042]
[1757403615161,7.44589889,4359.2,4359.1,0.042]
[1757403617248,6.39013331,4359.2,4359.1,0.042]
[1757403617990,2.50713331,4359.2,4359.1,0.042]
[1757403618186,6.38913331,4359.2,4359.1,0.042]
[1757403620064,6.96953331,4359.2,4359.1,0.042]
[1757403620272,7.77143331,4359.2,4359.1,0.042]
[1757403620568,7.77243331,4359.2,4359.1,0.042]
[1757403621004,6.50273331,4359.2,4359.1,0.341]
[1757403621175,4.20953442,4359.2,4359.1,0.341]
[1757403621809,0.001,4359.2,4359.1,0.6148]
[1757403622032,3.882,4359.2,4359.1,0.6148]
[1757403622310,3.882,4359.2,4359.1,0.341]
[1757403623006,3.882,4359.2,4359.1,0.6148]
[1757403623307,3.882,4359.2,4359.1,0.341]
[1757403626226,3.882,4359.2,4359.1,0.042]
[1757403626550,4.17,4359.2,4359.1,0.042]
[1757403626848,3.882,4359.2,4359.1,0.042]
[1757403627446,5.1509,4359.2,4359.1,0.042]
[1757403627640,6.17599889,4359.2,4359.1,0.042]
[1757403627787,9.49866666,4359.2,4359.1,0.042]
[1757403630688,9.71192304,4359.2,4359.1,0.042]
[1757403633629,5.15166666,4359.2,4359.1,0.042]
[1757403633941,4.88430106,4359.2,4359.1,0.3278]
[1757403634441,1.00630106,4359.2,4359.1,0.3278]
[1757403634651,4.88430106,4359.2,4359.1,0.3278]
[1757403635124,7.17829995,4359.2,4359.1,0.3278]
[1757403635854,7.17829995,4359.2,4359.1,0.042]
[1757403636007,7.47699995,4359.2,4359.1,0.042]
[1757403636208,9.76271878,4359.2,4359.1,0.042]
[1757403639047,9.76253475,4359.2,4359.1,0.042]
[1757403641153,9.31153475,4359.2,4359.1,0.042]
[1757403641517,9.76153475,4359.2,4359.1,0.042]
[1757403642920,5.88453475,4359.2,4359.1,0.042]
[1757403643121,9.76153475,4359.2,4359.1,0.042]
[1757403645445,5.88453475,4359.2,4359.1,0.042]
[1757403645651,9.76153475,4359.2,4359.1,0.042]
[1757403646576,9.7615529,4359.2,4359.1,0.042]
[1757403646949,7.30405275,4359.2,4359.1,0.042]
[1757403647135,7.30325275,4359.2,4359.1,0.042]
[1757403647532,8.55875275,4359.2,4359.1,0.042]
[1757403649962,8.55872582,4359.2,4359.1,0.042]
[1757403655055,7.30222582,4359.2,4359.1,0.3278]
[1757403655277,7.51549828,4359.2,4359.1,0.3278]
[1757403655666,7.51549828,4359.2,4359.1,0.042]
[1757403656168,7.30222582,4359.2,4359.1,0.042]
[1757403656368,8.7710775,4359.2,4359.1,0.042]
[1757403657170,4.8960775,4359.2,4359.1,0.042]
[1757403657401,8.7700775,4359.2,4359.1,0.042]
[1757403657711,8.77036052,4359.2,4359.1,0.042]
[1757403659617,8.02166052,4359.2,4359.1,0.042]
[1757403660318,8.77036052,4359.2,4359.1,0.042]
[1757403660617,10.06196521,4359.2,4359.1,0.042]
[1757403662309,8.80646521,4359.2,4359.1,0.042]
[1757403662812,10.07406521,4359.2,4359.1,0.042]
[1757403666530,10.56587434,4359.2,4359.1,0.042]
[1757403671506,3.08615678,4358.9,4358.8,0.025]
[1757403671705,7.51281841,4358.9,4358.8,0.025]
[1757403671879,8.78041841,4358.9,4358.8,0.025]
[1757403672081,9.27222754,4358.9,4358.8,0.025]
[1757403673176,9.27142754,4358.9,4358.8,0.025]
[1757403673378,11.53933551,4358.9,4358.8,0.025]
[1757403674305,14.53933551,4358.9,4358.8,0.025]
[1757403674835,14.53933551,4358.9,4358.8,1e-08]
[1757403675689,2.29487887,4357.6,4357.1,0.00900001]
[1757403675888,1.761,4357.5,4357.1,0.00900001]
[1757403676104,5.632,4357.5,4357.1,0.00900001]
[1757403676418,6.32044209,4357.5,4357.4,0.3164]
[1757403678029,6.32044209,4357.5,4357.4,0.4437]
[1757403678030,1.761,4357.5,4357.4,0.4437]
[1757403678195,5.632,4357.5,4357.4,0.7175]
[1757403678516,5.632,4357.5,4357.4,3.01244652]
[1757403679379,5.632,4357.5,4357.4,2.88514652]
[1757403679583,1.761,4357.5,4357.4,2.88514652]
[1757403679908,5.632,4357.5,4357.4,2.88514652]
[1757403680311,1.761,4357.5,4357.4,3.53136495]
[1757403680514,5.632,4357.5,4357.4,3.53136495]
[1757403680707,1.761,4358.2,4358.1,2.29457791]
[1757403680901,5.632,4358.2,4358.1,2.88477791]
[1757403681917,5.632,4358.2,4358.1,3.40272239]
[1757403682214,5.631,4358.2,4358.1,3.53002239]
[1757403682399,1.761,4358.2,4358.1,3.53002239]
[1757403682603,3.87,4358.2,4358.1,3.53002239]
[1757403682794,0.025,4358.8,4358.7,2.29426205]
[1757403682994,3.895,4358.8,4358.7,2.29426205]
[1757403683204,3.895,4358.8,4358.7,2.88446205]
[1757403683403,3.895,4358.8,4358.4,2.29437803]
[1757403683603,3.895,4358.8,4358.1,0.51794448]
[1757403683794,3.895,4358.8,4358.4,2.29438555]
[1757403684005,3.895,4358.8,4358.7,0.3164]
[1757403685707,3.895,4358.8,4358.3,2.29446542]
[1757403686107,4.323,4358.8,4358.3,2.29446542]
[1757403686313,4.323,4358.8,4358.2,2.40889236]
[1757403686708,3.87,4358.7,4358.2,0.1144]
[1757403686913,3.87,4358.7,4358.4,2.2944045]
[1757403687115,3.87,4358.7,4358.6,0.3164]
[1757403687809,0.025,4358.8,4358.6,0.80692243]
[1757403688119,3.869,4358.7,4358.6,0.5902]
[1757403688324,3.869,4358.7,4358.6,0.3164]
[1757403690025,3.869,4358.7,4358.2,0.1144]
[1757403690188,4.297,4358.7,4358.3,2.29445858]
[1757403690389,4.297,4358.7,4358.2,0.1144]
[1757403690724,4.297,4358.7,4358.4,2.29436751]
[1757403690908,3.869,4358.7,4358.4,2.29436751]
[1757403691728,0.2957,4358.5,4358.2,2.29452236]
[1757403691932,3.869,4358.4,4358.2,2.29452236]
[1757403692127,3.869,4358.4,4358.1,2.29457302]
[1757403692331,3.869,4358.4,4358.2,2.2944964]
[1757403692501,3.869,4358.4,4358.3,2.60987261]
[1757403692998,3.869,4358.4,4358.3,0.3154]
[1757403693204,3.869,4358.4,4358.1,2.29453274]
[1757403693498,3.869,4358.4,4358.2,2.29451277]
[1757403694329,3.869,4358.4,4357.9,2.40903181]
[1757403694644,0.4318,4358.3,4357.9,2.29467393]
[1757403694947,0.2957,4358.0,4357.7,2.29473757]
[1757403695259,0.1144,4357.8,4357.1,2.42045501]
[1757403695428,0.1144,4357.8,4357.3,2.29494696]
[1757403695842,0.1144,4357.8,4357.1,3.08800051]
[1757403695843,0.1144,4357.8,4357.2,5.29503136]
[1757403696142,0.1144,4357.8,4357.7,0.3154]
[1757403696328,0.1144,4357.8,4357.5,2.29486772]
[1757403697012,0.1144,4357.8,4357.6,2.29483016]
[1757403697213,0.1144,4357.8,4357.5,2.29487735]
[1757403697844,0.1144,4357.8,4357.7,2.61018853]
[1757403698031,0.1144,4357.8,4357.7,0.3154]
[1757403698219,0.1144,4357.8,4357.7,2.61018853]
[1757403698427,0.1144,4357.8,4357.7,0.3154]
[1757403698630,0.1144,4357.8,4357.6,2.29484031]
[1757403698828,0.1144,4357.8,4357.1,0.79294551]
[1757403699149,0.1144,4357.8,4357.2,0.63619382]
[1757403699455,0.1136,4357.8,4357.4,2.29490262]
[1757403699640,0.1136,4357.8,4357.3,3.0]
[1757403699641,1.0625,4357.8,4357.5,2.2948806]
[1757403699946,0.2957,4357.6,4357.1,0.01100001]
[1757403700117,3.867,4357.5,4357.1,0.01100001]
[1757403700323,4.8159,4357.5,4357.1,2.30608724]
[1757403700524,0.9489,4357.4,4357.1,2.30608724]
[1757403701028,0.5171,4357.4,4357.1,0.01100001]
[1757403701232,0.4318,4357.3,4357.1,0.01100001]
[1757403701426,3.867,4357.2,4357.1,0.01100001]
[1757403702122,4.5945,4357.2,4357.1,0.01100001]
[1757403702452,3.867,4357.2,4357.1,0.01100001]
[1757403703256,0.68846895,4357.7,4357.1,0.55952032]
[1757403703454,3.867,4357.6,4357.5,2.29489386]
[1757403703627,3.867,4357.6,4357.5,2.61029386]
[1757403704535,3.867,4357.6,4357.3,2.29499659]
[1757403704735,3.867,4357.6,4357.4,2.29493122]
[1757403705146,0.2957,4357.5,4357.2,2.29505186]
[1757403705346,0.7275,4357.5,4357.2,2.29505186]
[1757403705852,1.2446,4357.5,4357.3,2.29497934]
[1757403706158,0.9489,4357.4,4357.1,0.01100001]
[1757403706365,3.867,4357.3,4357.1,0.01100001]
[1757403706559,0.2957,4357.2,4357.1,0.01100001]
[1757403706873,1.2446,4357.2,4357.1,0.01100001]
[1757403707023,2.0366,4357.2,4357.1,0.01100001]
[1757403708956,3.867,4357.2,4357.1,0.32640001]
[1757403709151,3.867,4357.2,4357.1,2.62150455]
[1757403709453,5.1116,4357.2,4357.1,0.01100001]
[1757403710972,5.9036,4357.2,4357.1,0.01100001]
[1757403711270,6.64425056,4357.2,4357.1,0.01100001]
[1757403712585,5.9036,4357.2,4357.1,0.01100001]
[1757403714955,2.0366,4357.2,4357.1,0.01100001]
[1757403715183,0.001,4357.8,4357.1,0.43510001]
[1757403715342,0.001,4357.8,4357.7,2.29478853]
[1757403715846,2.274,4357.8,4357.7,3.12103097]
[1757403716050,0.70878692,4357.8,4357.7,6.81453845]
[1757403716271,1.761,4357.9,4357.8,2.29473587]
[1757403716473,4.511,4357.9,4357.8,2.78263043]
[1757403716671,4.511,4357.9,4357.8,3.09803043]
[1757403716840,4.42840502,4357.9,4357.8,4.03413449]
[1757403717046,4.34581004,4357.9,4357.8,4.03413449]
[1757403717341,4.22191757,4357.9,4357.8,3.73738714]
[1757403717547,4.13932259,4357.9,4357.8,3.73738714]
[1757403717742,4.01543012,4357.9,4357.8,3.73738714]
[1757403717991,3.97413263,4357.9,4357.8,3.73738714]
[1757403718195,3.89153765,4357.9,4357.8,3.73738714]
[1757403718375,3.80894267,4357.9,4357.8,3.73738714]
[1757403718689,3.64375271,4357.9,4357.8,3.73738714]
[1757403718873,3.60245522,4357.9,4357.8,3.73738714]
[1757403719077,3.47856275,4357.9,4357.8,3.73738714]
[1757403719280,3.43726526,4357.9,4357.8,3.42198714]
[1757403719497,3.2720753,4357.9,4357.8,3.42198714]
[1757403719816,3.10688534,4357.9,4357.8,3.42198714]
[1757403720091,3.10688534,4357.9,4357.8,3.73738714]
[1757403720310,3.10688534,4357.9,4357.8,3.42198714]
[1757403720512,0.35688534,4357.9,4357.8,2.61013587]
[1757403722114,4.22288534,4357.9,4357.8,2.61013587]
[1757403722583,4.22288534,4357.9,4357.8,2.29473587]
[1757403723505,5.01398534,4357.9,4357.5,0.1144]
[1757403723800,5.01398534,4357.9,4356.9,3.866]
[1757403723801,0.614,4357.8,4357.7,2.29474868]
[1757403723969,1.0605,4357.8,4357.7,2.29474868]
[1757403724170,1.352,4357.8,4357.7,2.29474868]
[1757403724566,0.614,4357.8,4357.7,2.29474868]
[1757403724771,3.9794,4357.8,4357.7,2.29474868]
[1757403725402,3.9786,4357.8,4357.7,2.29474868]
[1757403729006,5.2172,4357.8,4357.7,2.29474868]
[1757403730319,4.7707,4357.8,4357.7,2.29474868]
[1757403730488,4.4792,4357.8,4357.7,2.29474868]
[1757403730689,3.9796,4357.8,4357.7,2.29474868]
[1757403730916,5.2172,4357.8,4357.7,2.29474868]
[1757403731218,4.6571,4357.8,4357.7,2.29474868]
[1757403731519,4.3656,4357.8,4357.7,2.29474868]
[1757403732922,5.1036,4357.8,4357.7,2.29474868]
[1757403733711,4.3656,4357.8,4357.7,2.29474868]
[1757403733917,3.866,4357.8,4357.7,2.29474868]
[1757403735796,3.865,4357.8,4357.7,2.29474868]
[1757403736933,0.001,4357.8,4357.7,2.60634868]
[1757403737091,2.95,4357.8,4357.7,3.10791195]
[1757403737428,3.865,4357.8,4357.7,3.10791195]
[1757403739815,0.001,4357.8,4357.7,3.10791195]
[1757403741300,0.001,4357.8,4357.7,2.79631195]
[1757403741501,0.001,4357.8,4357.7,3.10791195]
[1757403741835,0.001,4357.8,4357.7,2.29474868]
[1757403741836,1.2386,4357.8,4357.7,2.29474868]
[1757403743028,1.2386,4357.8,4357.7,2.29478853]
[1757403743232,1.353,4357.8,4357.3,3.0]
[1757403743401,0.4069,4357.8,4357.7,2.29478853]
[1757403743830,0.4069,4357.8,4357.6,2.29483414]
[1757403744145,0.9461,4357.7,4357.1,0.01100001]
[1757403744437,3.864,4357.6,4357.5,2.29488471]
[1757403744659,5.1016,4357.6,4357.5,2.29488471]
[1757403747357,5.1016,4357.6,4357.4,2.29490486]
[1757403747532,4.1555,4357.6,4357.5,2.29489386]
[1757403748126,5.1016,4357.6,4357.5,2.29489386]
[1757403749148,5.1016,4357.6,4357.4,2.29493546]
[1757403749348,0.9461,4357.5,4357.4,2.29493546]
[1757403749740,1.2376,4357.5,4357.4,2.29493546]
[1757403750141,5.1006,4357.5,4357.4,2.29493546]
[1757403751057,5.1006,4357.5,4357.3,2.29499219]
[1757403751244,4.1545,4357.5,4357.4,2.29494652]
[1757403751856,0.7912,4357.4,4357.1,0.01100001]
[1757403752056,3.863,4357.3,4357.2,2.29501278]
[1757403752642,4.8156,4357.3,4357.2,2.29501278]
[1757403753046,5.1012,4357.3,4357.1,0.01100001]
[1757403753242,5.1012,4357.3,4357.1,2.30605943]
[1757403753442,0.9526,4357.2,4357.1,0.01100001]
[1757403753830,1.2382,4357.2,4357.1,0.01100001]
[1757403754165,3.863,4357.3,4357.1,0.01100001]
[1757403754466,3.863,4357.2,4357.1,2.61879496]
[1757403754671,0.9526,4357.6,4357.2,2.29499985]
[1757403754967,0.001,4357.8,4357.4,2.29494652]
[1757403755170,0.792,4357.6,4357.5,2.29489386]
[1757403755545,2.0302,4357.6,4357.4,2.29493041]
[1757403755858,0.001,4357.8,4357.7,2.29478853]
[1757403756280,0.001,4357.8,4357.7,2.60748853]
[1757403759597,0.001,4357.8,4357.7,5.60748853]
[1757403759750,0.001,4357.8,4357.7,9.85648853]
[1757403760395,0.001,4357.8,4357.7,9.74428853]
[1757403760595,0.001,4357.8,4357.7,10.72041659]
[1757403761287,0.001,4357.8,4357.7,10.99421659]
[1757403761487,0.001,4357.8,4357.7,11.08801659]
[1757403761676,0.001,4357.8,4357.7,11.20241659]
[1757403762886,0.001,4357.8,4357.7,10.83481659]
[1757403763069,0.001,4357.8,4357.7,11.10861659]
[1757403764287,0.001,4357.8,4357.7,10.83481659]
[1757403766573,0.001,4357.8,4357.7,11.20251659]
[1757403766884,0.001,4357.8,4357.7,10.83481659]
[1757403767070,0.001,4357.8,4357.7,11.10861659]
[1757403767498,0.001,4357.8,4357.7,11.20251659]
[1757403768179,0.001,4357.8,4357.7,11.10861659]
[1757403769672,0.001,4357.8,4357.7,10.83481659]
[1757403770071,0.001,4357.8,4357.7,11.10861659]
[1757403770679,0.001,4357.8,4357.7,10.83481659]
[1757403771009,0.001,4357.8,4357.7,41.50791736]
[1757403773518,1.2392,4357.8,4357.1,0.01100001]
[1757403773690,1.2392,4357.8,4357.2,2.29505186]
[1757403773890,0.9526,4357.7,4357.2,2.29505186]
[1757403774387,0.2856,4357.3,4357.2,2.29505186]
[1757403774588,1.2382,4357.3,4357.2,2.29505186]
[1757403776120,1.2382,4357.3,4357.1,0.01100001]
[1757403776420,1.2382,4357.3,4357.1,2.3060929]
[1757403776711,0.9526,4357.2,4357.1,2.3060929]
[1757403776920,1.2382,4357.2,4357.1,2.3060929]
[1757403777288,1.2382,4357.2,4357.1,1.8060929]
[1757403777890,1.2374,4357.2,4357.1,1.8060929]
[1757403778092,1.2374,4357.2,4357.0,2.29514922]
[1757403778320,1.2374,4357.2,4356.9,3.0]
[1757403778321,0.4345,4357.1,4356.9,3.0]
[1757403778616,0.4345,4357.1,4357.0,2.29515721]
[1757403778922,0.793,4357.8,4357.1,2.29507958]
[1757403779143,0.48486877,4357.7,4357.1,2.29507958]
[1757403779326,0.2856,4357.2,4357.1,2.29507958]
[1757403779489,0.7201,4357.2,4357.1,2.29507958]
[1757403779890,1.2382,4357.2,4357.1,2.29507958]
[1757403780723,1.2382,4357.2,4356.9,5.29520068]
[1757403780927,0.9526,4357.1,4357.0,2.29515561]
[1757403781293,1.2382,4357.1,4357.0,2.29515561]
[1757403784817,1.36202,4357.1,4356.8,0.1394]
[1757403785024,0.92752,4357.1,4356.8,0.025]
[1757403785210,0.4475,4357.0,4356.8,0.025]
[1757403785622,0.7846,4356.9,4356.8,0.025]
[1757403786009,1.2321,4356.9,4356.8,0.025]
[1757403786411,1.2321,4356.9,4356.8,2.32026257]
[1757403786662,1.2321,4356.9,4356.8,0.025]
[1757403786820,1.2321,4356.9,4356.8,2.32026257]
[1757403787035,1.2321,4356.9,4356.8,0.025]
[1757403787435,0.4922,4357.4,4356.8,0.3394]
[1757403787743,0.4922,4357.4,4356.9,0.02295209]
[1757403787923,0.4922,4357.4,4357.2,2.29500292]
[1757403788119,0.793,4357.8,4356.9,2.29520989]
[1757403788120,1.2321,4357.3,4357.1,2.29508943]
[1757403788323,0.4475,4357.2,4356.8,0.025]
[1757403788522,0.9397,4357.2,4356.9,2.29520989]
[1757403789042,0.9397,4357.2,4356.8,0.025]
[1757403789043,0.4922,4357.2,4356.8,0.025]
[1757403789416,0.9397,4357.1,4357.0,2.29515721]
[1757403789610,0.4922,4357.1,4357.0,2.29515721]
[1757403789812,0.9397,4357.4,4357.3,2.29499919]
[1757403790112,1.2321,4357.4,4357.3,2.29499919]
[1757403790530,0.7846,4357.4,4356.8,0.025]
[1757403790736,0.7846,4357.4,4357.2,2.29500739]
[1757403790931,0.7846,4357.4,4357.2,2.29503657]
[1757403790932,0.9397,4357.3,4357.2,2.29503657]
[1757403791118,1.2321,4357.3,4357.2,2.29503657]
[1757403792422,0.7846,4357.3,4357.2,2.29503657]
[1757403792622,1.2321,4357.3,4357.2,2.29503657]
[1757403792862,0.4932,4357.8,4357.2,0.3144]
[1757403793063,3.861,4357.7,4357.2,0.3144]
[1757403793262,0.9407,4357.8,4357.2,2.60944325]
[1757403793263,0.9397,4357.6,4357.2,2.60944325]
[1757403793563,0.9397,4357.5,4357.4,2.29494652]
[1757403793721,1.2321,4357.5,4357.4,2.29494652]
[1757403793921,0.001,4357.8,4357.7,2.29478853]
[1757403794190,0.4922,4357.7,4357.6,2.29483199]
[1757403794320,0.4485,4357.8,4357.1,2.29510454]
[1757403794321,0.001,4357.8,4357.1,2.29510454]
[1757403794677,0.001,4357.8,4357.7,2.29478853]
[1757403795683,1.2331,4357.8,4357.7,2.29478853]
[1757403796093,0.4932,4357.8,4357.7,2.29478853]
[1757403796248,1.2331,4357.8,4357.7,2.29478853]
[1757403797082,0.7856,4357.8,4357.7,2.29478853]
[1757403797384,0.001,4357.8,4357.7,2.29478853]
[1757403797770,0.001,4357.8,4357.7,2.60918853]
[1757403799147,0.001,4357.8,4357.7,2.29478853]
[1757403799347,0.001,4357.8,4357.7,2.60918853]
[1757403800383,0.001,4357.8,4357.7,38.24958114]
[1757403800557,0.001,4357.8,4357.7,8.29579896]
[1757403800888,0.001,4357.8,4357.7,7.98643326]
[1757403801351,0.001,4357.8,4357.7,8.06723326]
[1757403801549,0.001,4357.8,4357.7,8.34103326]
[1757403801960,0.001,4357.8,4357.7,38.34103326]
[1757403803075,0.001,4357.8,4357.7,37.98643326]
[1757403803793,0.001,4357.8,4357.7,38.26023326]
[1757403803995,0.0002,4357.8,4357.7,38.34103326]
[1757403804297,0.0002,4357.8,4357.7,38.26023326]
[1757403804473,0.0002,4357.8,4357.7,42.12023326]
[1757403805497,0.0002,4357.8,4357.7,42.20103326]
[1757403806177,0.0002,4357.8,4357.7,42.12023326]
[1757403807004,0.0002,4357.8,4357.7,41.84643326]
[1757403807505,0.0002,4357.8,4357.7,11.84643326]
[1757403811107,0.7848,4357.8,4357.7,7.67203326]
[1757403811312,1.2323,4357.8,4357.7,11.02918853]
[1757403811614,0.7848,4357.8,4357.7,7.17018853]
[1757403811805,1.2523,4357.8,4357.7,11.02918853]
[1757403812496,0.4924,4357.8,4357.7,11.02918853]
[1757403812703,0.0002,4357.8,4357.7,11.02918853]
[1757403813397,1.2669,4357.8,4357.7,11.02918853]
[1757403813586,0.4832,4357.8,4357.7,11.02918853]
[1757403814807,0.0002,4357.8,4357.7,11.02918853]
[1757403815783,0.7839,4357.8,4357.7,11.02918853]
[1757403815985,1.2669,4357.8,4357.7,11.02918853]
[1757403816500,0.4832,4357.8,4357.7,11.02918853]
[1757403817210,1.2669,4357.8,4357.7,11.02918853]
[1757403819709,0.4935,4358.8,4358.2,2.29452526]
[1757403820007,0.484,4358.7,4358.6,2.29431468]
[1757403820223,0.001,4358.7,4358.6,2.29431468]
[1757403820551,0.3172,4358.7,4358.6,2.29431468]
[1757403820701,1.2677,4358.7,4358.5,3.858]
[1757403820906,0.9505,4358.6,4358.5,2.29436732]
[1757403821102,1.2667,4358.6,4358.5,2.29436732]
[1757403825473,1.2667,4358.6,4358.2,3.858]
[1757403825759,1.2667,4358.6,4357.2,1.64279983]
[1757403825760,0.1144,4358.4,4358.3,2.29447261]
[1757403825932,1.3811,4358.4,4358.3,2.29447261]
[1757403827466,0.9136,4358.4,4358.3,2.29447261]
[1757403827646,1.3811,4358.4,4358.3,2.29447261]
[1757403830370,1.3803,4358.4,4358.3,2.29447261]
[1757403832050,1.51843,4358.4,4357.9,3.858]
[1757403832384,0.9505,4358.3,4358.0,2.29459254]
[1757403832591,0.3162,4358.1,4358.0,2.29463056]
[1757403832880,1.2667,4358.1,4358.0,2.29463056]
[1757403835582,0.7992,4358.1,4358.0,2.29463056]
[1757403835885,0.483,4358.1,4358.0,2.29463056]
[1757403836061,0.1136,4358.4,4358.3,2.29447261]
[1757403836445,0.4298,4358.4,4358.3,2.29447261]
[1757403836692,1.3803,4358.4,4358.1,2.29456869]
[1757403836853,0.4298,4358.4,4358.3,0.002]
[1757403837054,0.4308,4358.4,4358.3,0.002]
[1757403837450,1.3813,4358.4,4358.3,0.002]
[1757403838701,1.51953,4358.4,4358.3,0.002]
[1757403839080,1.51953,4358.4,4358.3,2.29647261]
[1757403839328,1.51953,4358.4,4358.3,0.002]
[1757403840432,4.60594997,4358.4,4358.3,0.002]
[1757403840812,5.16211793,4358.4,4358.3,0.002]
[1757403841117,8.59130075,4358.4,4358.3,0.002]
[1757403841806,2.43988078,4358.4,4358.3,0.002]
[1757403842006,4.73430075,4358.4,4358.3,0.002]
[1757403842228,2.43988078,4358.4,4358.3,0.002]
[1757403842437,6.16853,4358.4,4358.3,0.002]
[1757403842808,1.51953,4358.4,4358.3,0.002]
[1757403843016,5.37653,4358.4,4358.3,0.002]
[1757403843417,7.67094997,4358.4,4358.3,0.002]
[1757403844156,8.46294997,4358.4,4358.3,0.002]
[1757403844362,8.5911807,4358.4,4358.3,0.002]
[1757403844646,8.5911807,4358.4,4357.8,0.002]
[1757403844647,3.08668321,4357.9,4357.8,0.002]
[1757403844816,3.08689386,4357.5,4357.4,0.002]
[1757403845151,7.24289386,4357.5,4357.4,0.002]
[1757403845357,8.16959386,4357.5,4357.4,0.002]
[1757403848852,5.8747,4357.5,4357.4,0.002]
[1757403849058,8.16959386,4357.5,4357.4,0.002]
[1757403849260,1.83971921,4357.5,4357.4,0.002]
[1757403849419,1.2257,4357.5,4357.4,0.002]
[1757403849615,5.0827,4357.5,4357.4,0.002]
[1757403849851,0.09180218,4357.8,4357.4,0.3028]
[1757403850666,4.156,4357.5,4357.4,0.002]
[1757403851583,1.761,4358.0,4357.4,0.3028]
[1757403851783,3.857,4357.9,4357.4,0.3028]
[1757403852078,0.9267,4357.8,4357.4,0.002]
[1757403852584,0.299,4357.5,4357.4,0.002]
[1757403853199,5.0827,4357.5,4357.4,0.002]
[1757403855182,0.1144,4357.5,4357.4,2.59774652]
[1757403855481,0.1144,4357.5,4357.4,3.08721986]
[1757403855684,3.857,4357.7,4357.4,3.08721986]
[1757403855685,3.857,4357.8,4357.5,2.29485958]
[1757403855847,3.857,4357.8,4357.4,0.002]
[1757403856047,0.299,4357.6,4357.4,0.002]
[1757403856247,0.2982,4357.6,4357.4,0.002]
[1757403856447,0.4851,4357.6,4357.4,2.29694082]
[1757403857295,0.4851,4357.6,4357.5,2.29489386]
[1757403857457,0.1144,4357.5,4357.4,2.29693284]
[1757403858101,0.1144,4357.5,4357.4,2.59773284]
[1757403858279,3.9714,4357.8,4357.7,2.29478853]
[1757403858476,0.1144,4357.8,4357.7,2.29478853]
[1757403858783,0.1144,4357.8,4357.7,2.59558853]
[1757403859790,0.1144,4357.8,4357.7,2.29478853]
[1757403860159,0.1144,4357.8,4357.4,2.29691723]
[1757403860499,0.9267,4357.7,4357.4,2.29691819]
[1757403860665,0.9267,4357.6,4357.4,0.002]
[1757403860986,0.9267,4357.6,4357.4,2.29689459]
[1757403861184,0.299,4357.5,4357.4,0.002]
[1757403861683,0.1144,4357.6,4357.5,2.29489386]
[1757403861889,0.1144,4357.6,4357.5,2.59569386]
[1757403864091,1.3401,4357.6,4357.4,0.002]
[1757403864299,0.9267,4357.5,4357.4,0.002]
[1757403864675,1.2257,4357.5,4357.4,0.002]
[1757403865998,1.2257,4357.5,4357.4,2.29694652]
[1757403866295,1.2257,4357.5,4357.4,0.002]
[1757403868283,1.74531,4357.5,4357.4,0.002]
[1757403869692,5.15971,4357.5,4357.4,0.002]
[1757403869908,5.0817,4357.5,4357.4,0.002]
[1757403877349,3.856,4357.5,4357.4,0.3124]
[1757403877514,3.856,4357.5,4357.4,0.002]
[1757403877716,1.762,4357.6,4357.4,0.3124]
[1757403877922,0.1144,4357.5,4357.4,0.3124]
[1757403878312,3.9704,4357.5,4357.4,0.3124]
[1757403879152,3.9704,4357.5,4357.4,2.60734652]
[1757403879353,3.9704,4357.5,4357.4,0.3124]
[1757403880070,4.7399,4357.5,4357.4,0.002]
[1757403880234,3.9694,4357.5,4357.4,0.3124]
[1757403880562,3.9694,4357.5,4357.4,0.002]
[1757403881502,3.9694,4357.5,4357.4,2.60734652]
[1757403881651,3.9694,4357.5,4357.4,0.3124]
[1757403882349,5.1857,4357.5,4357.4,0.002]
[1757403885283,6.10994477,4357.5,4357.4,0.002]
[1757403886153,8.40483863,4357.5,4357.4,0.002]
[1757403887586,8.40483863,4357.5,4354.1,0.04]
[1757403887587,4.59073588,4356.6,4354.1,0.04]
[1757403887790,4.59073588,4356.6,4355.1,0.04]
[1757403887791,2.2961058,4355.2,4355.1,0.04]
[1757403887951,3.792,4355.1,4354.1,0.04]
[1757403888150,5.29626397,4354.9,4354.1,0.04]
[1757403888398,5.93483845,4354.9,4354.1,0.04]
[1757403888567,3.72741052,4354.9,4354.1,0.04]
[1757403888752,7.75241052,4354.9,4354.1,0.04]
[1757403888954,2.65802097,4354.9,4354.1,0.04]
[1757403889186,5.2421,4354.9,4354.1,0.04]
[1757403889402,1.43114655,4354.9,4354.1,0.04]
[1757403889559,0.7695,4354.9,4354.1,0.04]
[1757403889895,4.7935,4354.9,4354.1,0.04]
[1757403890256,5.2411,4354.9,4354.1,0.04]
[1757403890456,5.53328912,4354.9,4354.1,0.04]
[1757403890654,5.53328912,4354.9,4354.1,2.33667123]